[Event "Live Chess"]
[Site "Chess.com"]
[Date "2023.05.20"]
[Round "-"]
[White "onemoretime1975"]
[Black "BJAW87"]
[Result "1-0"]
[WhiteElo "1903"]
[BlackElo "1437"]
[TimeControl "300"]
[EndTime "11:12:34 PDT"]
[Termination "onemoretime1975 won by resignation"]

1. e4 {[%clk 0:04:58.6]} 1... c6 {[%clk 0:04:58.5]} 2. Nf3 {[%clk 0:04:56.2]}
2... d5 {[%clk 0:04:58]} 3. exd5 {[%clk 0:04:54.6]} 3... cxd5 {[%clk 0:04:57.3]}
4. d4 {[%clk 0:04:53.6]} 4... Nc6 {[%clk 0:04:56.3]} 5. Bd3 {[%clk 0:04:52.3]}
5... Nf6 {[%clk 0:04:55.5]} 6. c3 {[%clk 0:04:51.3]} 6... Bg4 {[%clk 0:04:54.6]}
7. h3 {[%clk 0:04:49.5]} 7... Bh5 {[%clk 0:04:53.4]} 8. Bf4 {[%clk 0:04:44.7]}
8... Qb6 {[%clk 0:04:48.2]} 9. Qb3 {[%clk 0:04:42]} 9... Qxb3 {[%clk 0:04:43.3]}
10. axb3 {[%clk 0:04:40.4]} 10... Bxf3 {[%clk 0:04:42.1]} 11. gxf3 {[%clk
0:04:39.1]} 11... e6 {[%clk 0:04:39.7]} 12. b4 {[%clk 0:04:35.9]} 12... Be7
{[%clk 0:04:11.1]} 13. Na3 {[%clk 0:04:28.1]} 13... O-O {[%clk 0:03:37.2]} 14.
O-O {[%clk 0:04:18.9]} 14... Nh5 {[%clk 0:03:21.2]} 15. Bg3 {[%clk 0:04:13.6]}
15... Nxg3 {[%clk 0:03:12.8]} 16. fxg3 {[%clk 0:04:12.2]} 16... Bd6 {[%clk
0:03:11.3]} 17. f4 {[%clk 0:04:08]} 17... Ne7 {[%clk 0:02:37.6]} 18. Kg2 {[%clk
0:03:39.6]} 18... Nf5 {[%clk 0:02:32]} 19. Bxf5 {[%clk 0:03:37.4]} 19... exf5
{[%clk 0:02:31.9]} 20. Rfe1 {[%clk 0:03:31.4]} 20... a6 {[%clk 0:02:22.5]} 21.
Nc2 {[%clk 0:03:24.7]} 21... Rfe8 {[%clk 0:02:19.4]} 22. Rxe8+ {[%clk
0:03:14.8]} 22... Rxe8 {[%clk 0:02:19.3]} 23. Re1 {[%clk 0:03:12.6]} 23... Rxe1
{[%clk 0:02:04.1]} 24. Nxe1 {[%clk 0:03:11.1]} 24... h6 {[%clk 0:02:01.9]} 25.
h4 {[%clk 0:03:06.1]} 25... b5 {[%clk 0:01:44.6]} 26. Nd3 {[%clk 0:03:00.9]}
26... f6 {[%clk 0:01:38.1]} 27. h5 {[%clk 0:02:52.6]} 27... Kf7 {[%clk
0:01:33.4]} 28. Kf3 {[%clk 0:02:49]} 28... g5 {[%clk 0:01:30]} 29. hxg6+ {[%clk
0:02:47.1]} 29... Kxg6 {[%clk 0:01:29.9]} 30. Nc5 {[%clk 0:02:44.8]} 30... Bxc5
{[%clk 0:01:22.3]} 31. dxc5 {[%clk 0:02:43.3]} 31... Kf7 {[%clk 0:01:21.8]} 32.
Ke3 {[%clk 0:02:41.5]} 32... Ke6 {[%clk 0:01:17.5]} 33. Kd4 {[%clk 0:02:38.7]}
33... h5 {[%clk 0:01:02.9]} 34. b3 {[%clk 0:02:36.7]} 34... Kd7 {[%clk
0:00:45.8]} 35. Kxd5 {[%clk 0:02:35]} 35... Kc7 {[%clk 0:00:44.4]} 36. c6 {[%clk
0:02:29.4]} 36... Kd8 {[%clk 0:00:40.2]} 37. Kd6 {[%clk 0:02:19.7]} 37... Kc8
{[%clk 0:00:38.8]} 38. c7 {[%clk 0:02:18.4]} 38... Kb7 {[%clk 0:00:35.3]} 39.
Kd7 {[%clk 0:02:16.9]} 1-0

[Event "Live Chess"]
[Site "Chess.com"]
[Date "2023.05.20"]
[Round "-"]
[White "18Ziyad"]
[Black "matt1979"]
[Result "0-1"]
[WhiteElo "951"]
[BlackElo "1438"]
[TimeControl "300"]
[EndTime "11:12:34 PDT"]
[Termination "matt1979 won by resignation"]

1. e3 {[%clk 0:04:59.1]} 1... f5 {[%clk 0:04:47.7]} 2. b3 {[%clk 0:04:57.8]}
2... Nf6 {[%clk 0:04:46]} 3. Bb2 {[%clk 0:04:56.3]} 3... e6 {[%clk 0:04:44]} 4.
g3 {[%clk 0:04:55.8]} 4... Be7 {[%clk 0:04:41.1]} 5. Bg2 {[%clk 0:04:55.7]} 5...
O-O {[%clk 0:04:39.5]} 6. Ne2 {[%clk 0:04:53.9]} 6... d6 {[%clk 0:04:38.3]} 7.
d3 {[%clk 0:04:53.3]} 7... e5 {[%clk 0:04:36.9]} 8. Nd2 {[%clk 0:04:52.3]} 8...
Nc6 {[%clk 0:04:34.6]} 9. O-O {[%clk 0:04:51]} 9... Bd7 {[%clk 0:04:31.1]} 10.
e4 {[%clk 0:04:45.2]} 10... f4 {[%clk 0:04:26.5]} 11. gxf4 {[%clk 0:04:42]}
11... exf4 {[%clk 0:04:25.2]} 12. Nxf4 {[%clk 0:04:41.9]} 12... Nxe4 {[%clk
0:04:04.8]} 13. dxe4 {[%clk 0:04:38.3]} 13... Rxf4 {[%clk 0:04:03.4]} 14. Re1
{[%clk 0:04:28.8]} 14... Bf6 {[%clk 0:03:56.3]} 15. Bxf6 {[%clk 0:04:16.6]}
15... Qxf6 {[%clk 0:03:52.9]} 16. Nf3 {[%clk 0:04:05.8]} 16... Bg4 {[%clk
0:03:50.1]} 17. Re3 {[%clk 0:03:57.6]} 17... Rf8 {[%clk 0:03:46.5]} 18. h3
{[%clk 0:03:49.5]} 18... Bxf3 {[%clk 0:03:44.9]} 19. Bxf3 {[%clk 0:03:48.1]}
19... Rxf3 {[%clk 0:03:43.9]} 20. Rxf3 {[%clk 0:03:47.2]} 20... Qxf3 {[%clk
0:03:42.6]} 21. Qxf3 {[%clk 0:03:45.9]} 21... Rxf3 {[%clk 0:03:41.2]} 22. Re1
{[%clk 0:03:44.8]} 22... Rxh3 {[%clk 0:03:39.2]} 23. Kg2 {[%clk 0:03:44.7]}
23... Rh6 {[%clk 0:03:37.3]} 24. a3 {[%clk 0:03:39.1]} 24... Ne5 {[%clk
0:03:33.6]} 25. c4 {[%clk 0:03:35.9]} 25... Rg6+ {[%clk 0:03:29.2]} 26. Kf1
{[%clk 0:03:33.7]} 26... Kf7 {[%clk 0:03:27.2]} 27. Rc1 {[%clk 0:03:26.4]} 27...
Nf3 {[%clk 0:03:22.9]} 28. Ke2 {[%clk 0:03:22.7]} 28... Nd4+ {[%clk 0:03:21.1]}
29. Ke3 {[%clk 0:03:18.2]} 29... c5 {[%clk 0:03:12.1]} 30. b4 {[%clk 0:03:11.3]}
30... b6 {[%clk 0:03:10.3]} 31. bxc5 {[%clk 0:03:07.7]} 31... dxc5 {[%clk
0:03:09.1]} 32. a4 {[%clk 0:03:01.3]} 32... Rf6 {[%clk 0:03:07.1]} 33. f4 {[%clk
0:02:57.3]} 33... g5 {[%clk 0:03:02.1]} 34. f5 {[%clk 0:02:30.1]} 34... h5
{[%clk 0:02:56]} 35. Rh1 {[%clk 0:02:28]} 35... h4 {[%clk 0:02:54.7]} 36. Rg1
{[%clk 0:02:26.4]} 36... h3 {[%clk 0:02:38.6]} 37. Rxg5 {[%clk 0:02:16.9]} 37...
Rh6 {[%clk 0:02:36.9]} 38. f6 {[%clk 0:02:05.2]} 38... h2 {[%clk 0:02:31]} 39.
Rg7+ {[%clk 0:02:01.6]} 39... Kxf6 {[%clk 0:02:29.4]} 40. Rb7 {[%clk 0:01:55.6]}
40... h1=Q {[%clk 0:02:26]} 0-1

[Event "Live Chess"]
[Site "Chess.com"]
[Date "2023.05.20"]
[Round "-"]
[White "EdenHazard8"]
[Black "ranvir123"]
[Result "1-0"]
[WhiteElo "2103"]
[BlackElo "889"]
[TimeControl "300"]
[EndTime "11:12:34 PDT"]
[Termination "EdenHazard8 won by checkmate"]

1. e4 {[%clk 0:04:57.7]} 1... e5 {[%clk 0:04:59.1]} 2. Qh5 {[%clk 0:04:57.2]}
2... Nc6 {[%clk 0:04:56.3]} 3. Bc4 {[%clk 0:04:56]} 3... g6 {[%clk 0:04:55.6]}
4. Qf3 {[%clk 0:04:55.6]} 4... Nf6 {[%clk 0:04:54.4]} 5. Ne2 {[%clk 0:04:55.1]}
5... Bc5 {[%clk 0:04:47.9]} 6. d3 {[%clk 0:04:54.3]} 6... O-O {[%clk 0:04:44.8]}
7. Bg5 {[%clk 0:04:53.7]} 7... Kg7 {[%clk 0:04:42]} 8. h4 {[%clk 0:04:51.5]}
8... h6 {[%clk 0:04:40.5]} 9. Bd2 {[%clk 0:04:48.4]} 9... Nd4 {[%clk 0:04:34.8]}
10. Nxd4 {[%clk 0:04:46.3]} 10... Bxd4 {[%clk 0:04:33.7]} 11. c3 {[%clk
0:04:45.8]} 11... Bb6 {[%clk 0:04:31.5]} 12. h5 {[%clk 0:04:45.2]} 12... Nxh5
{[%clk 0:04:27.1]} 13. Rxh5 {[%clk 0:04:44]} 13... gxh5 {[%clk 0:04:26.4]} 14.
Qxh5 {[%clk 0:04:43.2]} 14... Kh7 {[%clk 0:04:24.2]} 15. Qxh6+ {[%clk
0:04:41.8]} 15... Kg8 {[%clk 0:04:22.8]} 16. Qg6+ {[%clk 0:04:41.3]} 16... Kh8
{[%clk 0:04:21.8]} 17. Bg5 {[%clk 0:04:40.2]} 17... Rg8 {[%clk 0:04:16.2]} 18.
Bf6+ {[%clk 0:04:39.3]} 18... Qxf6 {[%clk 0:04:12]} 19. Qxf6+ {[%clk 0:04:39.2]}
19... Rg7 {[%clk 0:04:10.7]} 20. Qxe5 {[%clk 0:04:38.5]} 20... Kg8 {[%clk
0:04:08.4]} 21. Qe8+ {[%clk 0:04:36.8]} 21... Kh7 {[%clk 0:04:07.6]} 22. Bxf7
{[%clk 0:04:36.4]} 22... Rxg2 {[%clk 0:04:05.6]} 23. f4 {[%clk 0:04:32.4]} 23...
Rxb2 {[%clk 0:03:57.7]} 24. Bg6+ {[%clk 0:04:29.1]} 24... Kh6 {[%clk 0:03:56.2]}
25. f5 {[%clk 0:04:28.4]} 25... Kg5 {[%clk 0:03:55.3]} 26. Qe7+ {[%clk
0:04:25.8]} 26... Kf4 {[%clk 0:03:54.1]} 27. Qh4+ {[%clk 0:04:25.4]} 27... Ke3
{[%clk 0:03:53.1]} 28. Qg3# {[%clk 0:04:25]} 1-0

[Event "Live Chess"]
[Site "Chess.com"]
[Date "2023.05.20"]
[Round "-"]
[White "Outspanner"]
[Black "ramses-IIG"]
[Result "1-0"]
[WhiteElo "1535"]
[BlackElo "785"]
[TimeControl "300"]
[EndTime "11:12:35 PDT"]
[Termination "Outspanner won by checkmate"]

1. d4 {[%clk 0:04:57.5]} 1... e5 {[%clk 0:04:59.9]} 2. dxe5 {[%clk 0:04:52.7]}
2... Nc6 {[%clk 0:04:58.8]} 3. Nf3 {[%clk 0:04:51.6]} 3... Qe7 {[%clk
0:04:57.5]} 4. Bg5 {[%clk 0:04:30.3]} 4... Qb4+ {[%clk 0:04:54.4]} 5. Nc3 {[%clk
0:04:15.4]} 5... Qxb2 {[%clk 0:04:52.6]} 6. Bd2 {[%clk 0:04:14.9]} 6... Bb4
{[%clk 0:04:44.2]} 7. Rb1 {[%clk 0:04:13.8]} 7... Qa3 {[%clk 0:04:41.4]} 8. Nb5
{[%clk 0:01:47.5]} 8... Bxd2+ {[%clk 0:04:35.5]} 9. Qxd2 {[%clk 0:01:45.6]} 9...
Qxa2 {[%clk 0:04:32.6]} 10. Rc1 {[%clk 0:01:31.4]} 10... f6 {[%clk 0:04:11.2]}
11. exf6 {[%clk 0:01:19]} 11... Nxf6 {[%clk 0:04:08]} 12. Nxc7+ {[%clk
0:01:18.5]} 12... Kd8 {[%clk 0:04:04]} 13. Nxa8 {[%clk 0:01:17.9]} 13... Qb2
{[%clk 0:03:55.8]} 14. e3 {[%clk 0:01:11.7]} 14... Nb4 {[%clk 0:03:53.6]} 15.
Bd3 {[%clk 0:00:58.3]} 15... d5 {[%clk 0:03:48.2]} 16. O-O {[%clk 0:00:54.3]}
16... Nxd3 {[%clk 0:03:46.3]} 17. Qxd3 {[%clk 0:00:50.1]} 17... g6 {[%clk
0:03:15.1]} 18. e4 {[%clk 0:00:48.1]} 18... Re8 {[%clk 0:03:03.6]} 19. e5 {[%clk
0:00:45.2]} 19... Ne4 {[%clk 0:02:59]} 20. Qxd5+ {[%clk 0:00:43.8]} 20... Bd7
{[%clk 0:02:48.1]} 21. Qxe4 {[%clk 0:00:36.5]} 21... Kc8 {[%clk 0:02:46.5]} 22.
Qc4+ {[%clk 0:00:25.1]} 22... Kb8 {[%clk 0:02:44.9]} 23. Rfd1 {[%clk 0:00:17.3]}
23... Kxa8 {[%clk 0:02:40.6]} 24. Rb1 {[%clk 0:00:16.7]} 24... Qa2 {[%clk
0:02:07.5]} 25. Rxd7 {[%clk 0:00:15.6]} 25... Qxc4 {[%clk 0:02:03.8]} 26. Rbxb7
{[%clk 0:00:12.6]} 26... Rb8 {[%clk 0:02:00.2]} 27. Rxa7# {[%clk 0:00:10.8]} 1-0

[Event "Live Chess"]
[Site "Chess.com"]
[Date "2023.05.20"]
[Round "-"]
[White "mattihelenius2"]
[Black "misha464"]
[Result "1-0"]
[WhiteElo "479"]
[BlackElo "744"]
[TimeControl "300"]
[EndTime "11:12:45 PDT"]
[Termination "mattihelenius2 won by resignation"]

1. d4 {[%clk 0:04:58.1]} 1... d6 {[%clk 0:04:59.2]} 2. e4 {[%clk 0:04:57.1]}
2... Nc6 {[%clk 0:04:58.1]} 3. Bb5 {[%clk 0:04:55.5]} 3... Bd7 {[%clk
0:04:56.6]} 4. c3 {[%clk 0:04:54.4]} 4... a6 {[%clk 0:04:54.7]} 5. Bxc6 {[%clk
0:04:52.6]} 5... Bxc6 {[%clk 0:04:54.2]} 6. d5 {[%clk 0:04:52.3]} 6... Bd7
{[%clk 0:04:53.5]} 7. Be3 {[%clk 0:04:50.2]} 7... Nf6 {[%clk 0:04:53]} 8. f3
{[%clk 0:04:47.6]} 8... e6 {[%clk 0:04:51.6]} 9. Nd2 {[%clk 0:04:46.1]} 9...
exd5 {[%clk 0:04:47.5]} 10. Bg5 {[%clk 0:04:39.1]} 10... Be7 {[%clk 0:04:45.8]}
11. Bxf6 {[%clk 0:04:37.6]} 11... Bxf6 {[%clk 0:04:44.6]} 12. Qe2 {[%clk
0:04:33.6]} 12... O-O {[%clk 0:04:43.4]} 13. exd5 {[%clk 0:04:32.3]} 13... c6
{[%clk 0:04:40.8]} 14. Kf2 {[%clk 0:04:31.1]} 14... Re8 {[%clk 0:04:38.9]} 15.
Ne4 {[%clk 0:04:25.8]} 15... cxd5 {[%clk 0:04:33.2]} 16. Qd2 {[%clk 0:04:12.7]}
16... dxe4 {[%clk 0:04:32.2]} 17. fxe4 {[%clk 0:04:11.4]} 17... Bg5 {[%clk
0:04:29.5]} 18. Qd4 {[%clk 0:04:06.1]} 18... Bc6 {[%clk 0:04:24.8]} 19. Re1
{[%clk 0:04:04.4]} 19... f5 {[%clk 0:04:20.3]} 20. Nf3 {[%clk 0:04:02.1]} 20...
fxe4 {[%clk 0:04:19]} 21. Nxg5 {[%clk 0:03:59.6]} 21... Qxg5 {[%clk 0:04:16.5]}
22. Rxe4 {[%clk 0:03:58.1]} 22... Bxe4 {[%clk 0:04:13.9]} 23. Qxd6 {[%clk
0:03:57.3]} 23... Qf4+ {[%clk 0:04:11.2]} 24. Qxf4 {[%clk 0:03:55.3]} 24... Bc2
{[%clk 0:04:08.5]} 25. Re1 {[%clk 0:03:51.8]} 25... Rxe1 {[%clk 0:04:06.1]} 26.
Kxe1 {[%clk 0:03:51.1]} 26... Bd3 {[%clk 0:04:02]} 27. Qd2 {[%clk 0:03:42.6]}
27... Bf5 {[%clk 0:03:58.4]} 28. Qd5+ {[%clk 0:03:41]} 28... Be6 {[%clk
0:03:57.1]} 29. Qxe6+ {[%clk 0:03:39.6]} 29... Kh8 {[%clk 0:03:55.9]} 30. g3
{[%clk 0:03:37.1]} 30... a5 {[%clk 0:03:55.3]} 31. b3 {[%clk 0:03:35.9]} 31...
b5 {[%clk 0:03:54.7]} 32. Kd2 {[%clk 0:03:34.8]} 32... a4 {[%clk 0:03:53.7]} 33.
b4 {[%clk 0:03:31.2]} 33... a3 {[%clk 0:03:52.4]} 34. Qb6 {[%clk 0:03:28.6]}
34... Rg8 {[%clk 0:03:50.6]} 35. Qxb5 {[%clk 0:03:27.1]} 35... h6 {[%clk
0:03:48.9]} 36. c4 {[%clk 0:03:26.1]} 36... g6 {[%clk 0:03:48.8]} 37. c5 {[%clk
0:03:25.4]} 37... h5 {[%clk 0:03:48.2]} 38. Qd7 {[%clk 0:03:23.8]} 38... Rd8
{[%clk 0:03:45.4]} 39. Qxd8+ {[%clk 0:03:22.3]} 39... Kg7 {[%clk 0:03:43.8]} 40.
c6 {[%clk 0:03:21.6]} 1-0

[Event "Live Chess"]
[Site "Chess.com"]
[Date "2023.05.20"]
[Round "-"]
[White "Hacker_2009"]
[Black "KeithArkell"]
[Result "1/2-1/2"]
[WhiteElo "1936"]
[BlackElo "2604"]
[TimeControl "300"]
[EndTime "11:12:48 PDT"]
[Termination "Game drawn by stalemate"]

1. d4 {[%clk 0:04:58]} 1... e6 {[%clk 0:04:59.2]} 2. Nf3 {[%clk 0:04:56.8]} 2...
Nf6 {[%clk 0:04:57.5]} 3. e3 {[%clk 0:04:55.8]} 3... c5 {[%clk 0:04:56.3]} 4. c4
{[%clk 0:04:53.5]} 4... cxd4 {[%clk 0:04:55.4]} 5. Nxd4 {[%clk 0:04:52.3]} 5...
Nc6 {[%clk 0:04:53.8]} 6. Nc3 {[%clk 0:04:48.6]} 6... Bc5 {[%clk 0:04:50.9]} 7.
Be2 {[%clk 0:04:46.7]} 7... O-O {[%clk 0:04:49.9]} 8. O-O {[%clk 0:04:45.2]}
8... d5 {[%clk 0:04:48.1]} 9. cxd5 {[%clk 0:04:44.1]} 9... Nxd5 {[%clk
0:04:46.1]} 10. Nxd5 {[%clk 0:04:42.6]} 10... exd5 {[%clk 0:04:41.3]} 11. Nxc6
{[%clk 0:04:37]} 11... bxc6 {[%clk 0:04:41.2]} 12. b3 {[%clk 0:04:36.4]} 12...
Qb6 {[%clk 0:04:36.1]} 13. Bb2 {[%clk 0:04:35.4]} 13... Be6 {[%clk 0:04:32.6]}
14. Rc1 {[%clk 0:04:33.1]} 14... a5 {[%clk 0:04:31.7]} 15. Qc2 {[%clk
0:04:31.9]} 15... Be7 {[%clk 0:04:24.3]} 16. Qxc6 {[%clk 0:04:29.3]} 16... Qxc6
{[%clk 0:04:23.1]} 17. Rxc6 {[%clk 0:04:28.4]} 17... a4 {[%clk 0:04:22.4]} 18.
Bd1 {[%clk 0:03:53.5]} 18... Rfb8 {[%clk 0:04:17.5]} 19. Bd4 {[%clk 0:03:49.9]}
19... Bb4 {[%clk 0:04:06.6]} 20. bxa4 {[%clk 0:03:41.5]} 20... h6 {[%clk
0:03:53.3]} 21. Bb3 {[%clk 0:03:40.2]} 21... Bd7 {[%clk 0:03:43.3]} 22. Rc7
{[%clk 0:03:37.6]} 22... Be6 {[%clk 0:03:31.7]} 23. h3 {[%clk 0:03:32.3]} 23...
Bd6 {[%clk 0:03:29.5]} 24. Rc6 {[%clk 0:03:30.1]} 24... Be7 {[%clk 0:03:28.3]}
25. Rfc1 {[%clk 0:03:21.1]} 25... Bf8 {[%clk 0:03:18.5]} 26. Be5 {[%clk
0:03:14.8]} 26... Rd8 {[%clk 0:03:12.8]} 27. Bd4 {[%clk 0:03:10.8]} 27... Ba3
{[%clk 0:03:06.9]} 28. Rd1 {[%clk 0:03:01.3]} 28... Rdc8 {[%clk 0:03:00.6]} 29.
Rxc8+ {[%clk 0:02:57.7]} 29... Rxc8 {[%clk 0:03:00.5]} 30. a5 {[%clk 0:02:54.3]}
30... Ra8 {[%clk 0:02:57.1]} 31. Bb6 {[%clk 0:02:53.5]} 31... Bb4 {[%clk
0:02:48.6]} 32. Bxd5 {[%clk 0:02:47.4]} 32... Bxd5 {[%clk 0:02:29.9]} 33. Rxd5
{[%clk 0:02:45.9]} 33... Kh7 {[%clk 0:02:29.3]} 34. Rb5 {[%clk 0:02:35.7]} 34...
Bc3 {[%clk 0:02:27]} 35. a4 {[%clk 0:02:31.7]} 35... Kg6 {[%clk 0:02:21]} 36. g4
{[%clk 0:02:20.3]} 36... Kf6 {[%clk 0:02:18.1]} 37. Bd4+ {[%clk 0:02:16.4]}
37... Bxd4 {[%clk 0:02:16.9]} 38. exd4 {[%clk 0:02:16.3]} 38... Ke6 {[%clk
0:02:16.2]} 39. d5+ {[%clk 0:02:13.3]} 39... Ke5 {[%clk 0:02:14.9]} 40. Kg2
{[%clk 0:02:11.7]} 40... g6 {[%clk 0:02:13]} 41. Kg3 {[%clk 0:02:10.4]} 41... f5
{[%clk 0:02:11.5]} 42. f4+ {[%clk 0:02:08.5]} 42... Kd6 {[%clk 0:01:56.2]} 43.
gxf5 {[%clk 0:01:47]} 43... gxf5 {[%clk 0:01:56.1]} 44. Kh4 {[%clk 0:01:46.3]}
44... Ke7 {[%clk 0:01:42.1]} 45. Kh5 {[%clk 0:01:43.6]} 45... Ra6 {[%clk
0:01:40.9]} 46. h4 {[%clk 0:01:39.1]} 46... Kf7 {[%clk 0:01:35.4]} 47. Rb7+
{[%clk 0:01:36.1]} 47... Ke8 {[%clk 0:01:27.6]} 48. Rb6 {[%clk 0:01:26]} 48...
Rxa5 {[%clk 0:01:26.2]} 49. Rxh6 {[%clk 0:01:25.5]} 49... Rxd5 {[%clk
0:01:22.7]} 50. a5 {[%clk 0:01:23.5]} 50... Rxa5 {[%clk 0:01:21.4]} 51. Kg5
{[%clk 0:01:22.9]} 51... Kf7 {[%clk 0:01:15.1]} 52. Rf6+ {[%clk 0:01:20.8]}
52... Kg7 {[%clk 0:01:14.5]} 53. h5 {[%clk 0:01:13]} 53... Ra1 {[%clk
0:01:13.1]} 54. h6+ {[%clk 0:01:12.3]} 54... Kh7 {[%clk 0:01:12.4]} 55. Kxf5
{[%clk 0:01:05.5]} 55... Ra5+ {[%clk 0:01:11.3]} 56. Kg4 {[%clk 0:01:01.9]}
56... Rb5 {[%clk 0:01:10.6]} 57. f5 {[%clk 0:00:57.1]} 57... Rb1 {[%clk
0:01:09.4]} 58. Ra6 {[%clk 0:00:46.8]} 58... Rf1 {[%clk 0:01:05.1]} 59. Kg5
{[%clk 0:00:43.3]} 59... Rg1+ {[%clk 0:01:04.3]} 60. Kf6 {[%clk 0:00:41.2]}
60... Kxh6 {[%clk 0:01:03]} 61. Kf7+ {[%clk 0:00:40.6]} 61... Kh7 {[%clk
0:01:02.5]} 62. f6 {[%clk 0:00:40]} 62... Rb1 {[%clk 0:00:55.7]} 63. Ra7 {[%clk
0:00:37.6]} 63... Rb6 {[%clk 0:00:51.9]} 64. Re7 {[%clk 0:00:35.6]} 64... Ra6
{[%clk 0:00:50.3]} 65. Re6 {[%clk 0:00:29.9]} 65... Ra7+ {[%clk 0:00:49]} 66.
Kf8 {[%clk 0:00:28.1]} 66... Ra8+ {[%clk 0:00:47.4]} 67. Re8 {[%clk 0:00:26.7]}
67... Ra7 {[%clk 0:00:45.8]} 68. Re7+ {[%clk 0:00:24.1]} 68... Kh8 {[%clk
0:00:43.9]} 69. Rxa7 {[%clk 0:00:12.9]} 1/2-1/2

[Event "Live Chess"]
[Site "Chess.com"]
[Date "2023.05.20"]
[Round "-"]
[White "AdamOwls"]
[Black "AyannaTang"]
[Result "1-0"]
[WhiteElo "1944"]
[BlackElo "176"]
[TimeControl "300"]
[EndTime "11:13:15 PDT"]
[Termination "AdamOwls won by checkmate"]

1. e4 {[%clk 0:04:56.8]} 1... e5 {[%clk 0:04:58.5]} 2. Nf3 {[%clk 0:04:55.3]}
2... Nf6 {[%clk 0:04:56.4]} 3. Nxe5 {[%clk 0:04:53.2]} 3... Nxe4 {[%clk
0:04:54.9]} 4. Qe2 {[%clk 0:04:51.9]} 4... Qe7 {[%clk 0:04:52.9]} 5. Qxe4 {[%clk
0:04:49.5]} 5... d6 {[%clk 0:04:46.3]} 6. d4 {[%clk 0:04:47.7]} 6... dxe5 {[%clk
0:04:44.8]} 7. Qxe5 {[%clk 0:04:46.9]} 7... Qxe5+ {[%clk 0:04:43]} 8. dxe5
{[%clk 0:04:46.8]} 8... Nc6 {[%clk 0:04:30]} 9. Bf4 {[%clk 0:04:41.4]} 9... Nd4
{[%clk 0:04:10.9]} 10. Bd3 {[%clk 0:04:37.5]} 10... Bf5 {[%clk 0:04:05.4]} 11.
Bxf5 {[%clk 0:04:33.2]} 11... Nxf5 {[%clk 0:04:02.6]} 12. c3 {[%clk 0:04:28.2]}
12... O-O-O {[%clk 0:03:58.1]} 13. Nd2 {[%clk 0:04:22.1]} 13... Bb4 {[%clk
0:03:35.1]} 14. cxb4 {[%clk 0:04:17.5]} 14... Nd4 {[%clk 0:03:33.7]} 15. O-O
{[%clk 0:04:13.9]} 15... Nc2 {[%clk 0:03:31.3]} 16. Rac1 {[%clk 0:04:09.3]}
16... Nxb4 {[%clk 0:03:27.1]} 17. Be3 {[%clk 0:04:01.4]} 17... Nxa2 {[%clk
0:03:23]} 18. Ra1 {[%clk 0:03:59.9]} 18... Nb4 {[%clk 0:03:16.4]} 19. Rxa7
{[%clk 0:03:59.1]} 19... Rhe8 {[%clk 0:02:58.8]} 20. Nf3 {[%clk 0:03:54.7]}
20... Nd3 {[%clk 0:02:54]} 21. Rd1 {[%clk 0:03:44]} 21... Nxe5 {[%clk
0:02:50.9]} 22. Ra8# {[%clk 0:03:41.8]} 1-0

[Event "Live Chess"]
[Site "Chess.com"]
[Date "2023.05.20"]
[Round "-"]
[White "McSlash1"]
[Black "friarnator"]
[Result "0-1"]
[WhiteElo "2053"]
[BlackElo "1997"]
[TimeControl "300"]
[EndTime "11:13:20 PDT"]
[Termination "friarnator won by resignation"]

1. e4 {[%clk 0:04:58.8]} 1... c5 {[%clk 0:04:58.4]} 2. Nc3 {[%clk 0:04:56.6]}
2... d6 {[%clk 0:04:57]} 3. f4 {[%clk 0:04:55.3]} 3... g6 {[%clk 0:04:56.3]} 4.
Nf3 {[%clk 0:04:54.2]} 4... Bg7 {[%clk 0:04:55.7]} 5. Bc4 {[%clk 0:04:53.7]}
5... Nc6 {[%clk 0:04:54.4]} 6. d3 {[%clk 0:04:53]} 6... e6 {[%clk 0:04:53.7]} 7.
O-O {[%clk 0:04:52]} 7... Nge7 {[%clk 0:04:52.9]} 8. f5 {[%clk 0:04:51.4]} 8...
exf5 {[%clk 0:04:48.5]} 9. Ng5 {[%clk 0:04:47.8]} 9... O-O {[%clk 0:04:45.3]}
10. Qe1 {[%clk 0:04:43.6]} 10... h6 {[%clk 0:04:39.5]} 11. Nf3 {[%clk
0:04:35.5]} 11... Ne5 {[%clk 0:04:38.4]} 12. Nxe5 {[%clk 0:04:29.3]} 12... dxe5
{[%clk 0:04:35.1]} 13. exf5 {[%clk 0:04:24.4]} 13... Nxf5 {[%clk 0:04:28.9]} 14.
Kh1 {[%clk 0:04:11.2]} 14... Nd4 {[%clk 0:04:16.1]} 15. Qf2 {[%clk 0:04:07.9]}
15... Be6 {[%clk 0:04:11.4]} 16. Bb3 {[%clk 0:03:57.2]} 16... Bxb3 {[%clk
0:04:07.1]} 17. axb3 {[%clk 0:03:57.1]} 17... f5 {[%clk 0:03:58.7]} 18. Be3
{[%clk 0:03:35.9]} 18... a6 {[%clk 0:03:52]} 19. Na4 {[%clk 0:03:23.6]} 19...
Qd6 {[%clk 0:03:47.2]} 20. c3 {[%clk 0:03:11.5]} 20... Nxb3 {[%clk 0:03:42.2]}
21. Nxc5 {[%clk 0:03:10.8]} 21... Nxa1 {[%clk 0:03:37.6]} 22. Rxa1 {[%clk
0:02:59.4]} 22... f4 {[%clk 0:03:33.6]} 23. Bd2 {[%clk 0:02:55.2]} 23... b6
{[%clk 0:03:22]} 24. Na4 {[%clk 0:02:01.4]} 24... Qxd3 {[%clk 0:03:16.6]} 25.
Nxb6 {[%clk 0:01:59.4]} 25... Rad8 {[%clk 0:03:15]} 26. Be1 {[%clk 0:01:54]}
26... e4 {[%clk 0:03:11.8]} 27. Qg1 {[%clk 0:01:41.8]} 27... f3 {[%clk
0:03:08.3]} 28. Bf2 {[%clk 0:01:35.8]} 28... fxg2+ {[%clk 0:03:03.1]} 29. Qxg2
{[%clk 0:01:35.7]} 29... Qd2 {[%clk 0:02:58.4]} 30. Rf1 {[%clk 0:01:20.1]} 30...
e3 {[%clk 0:02:54]} 31. Nc4 {[%clk 0:01:14.1]} 31... Rxf2 {[%clk 0:02:35.3]} 32.
Rxf2 {[%clk 0:00:48.1]} 32... Qxf2 {[%clk 0:02:29.3]} 0-1